Cogmind - Beta 17 @@@ ROGUE MODE // 2026.07.13 @ 18:04:38 Player: oj;irsth;'shr Result: Destroyed by Y-45 Defender with Beam Rifle Performance ------------- Evolutions (1) 500 Regions Visited (3) 600 Robots Destroyed (35) 175 Value Destroyed (636) 636 Prototype IDs (0) 0 Alien Tech Used (0) 0 Bonus (5584) 5584 TOTAL SCORE: 7495 Bonus ------- Prayed to X0-1V1 5000 Major X0-1V1 Interference 650 Friendly Fire -66 Cogmind --------- Core Integrity 0/400 Matter 1/300 Energy 99/100 System Corruption 0% Temperature Cool (9) Movement Core (50) Location -9/Materials Parts ------- > --- POWER (1) -------- (None) > --- PROPULSION (5) --- (None) > --- UTILITY (1) ------ (None) > --- WEAPON (2) ------- Mini Grenade Launcher > --- INVENTORY (5) ---- Light Ion Engine Heat Sink High-capacity Matter Pod (0) Improved Terrain Scanner Peak State ------------ > --- POWER ------------ Light Ion Engine > --- PROPULSION ------- Aluminum Leg Aluminum Leg > --- UTILITY ---------- Medium Storage Unit Seismic Detector > --- WEAPON ----------- Assault Rifle Light Assault Rifle > --- INVENTORY -------- Light Ion Engine Heat Sink Large Storage Unit Improved Terrain Scanner Seismic Detector Light Assault Rifle Grenade Launcher Grenade Launcher [Rating: 8] Favorites ----------- Power Light Ion Engine Engine Light Ion Engine Propulsion Aluminum Leg Leg Aluminum Leg Utility Seismic Detector Device Seismic Detector Storage Large Storage Unit Weapon Light Assault Rifle Ballistic Gun Light Assault Rifle Ballistic Cannon Improved Light Cannon Launcher Grenade Launcher Build | -11 -10 -10 -9 ------- Run | Yrd Mat Min Mat Slots Evolved 2 | . . . 2 Power . | . . . . Propulsion 2 | . . . 2 Utility . | . . . . Weapon . | . . . . Parts Attached 17 | 7 4 3 3 Power 2 | 1 1 . . Engine 2 | 1 1 . . Core . | . . . . Reactor . | . . . . Propulsion 3 | 2 . 1 . Treads . | . . . . Leg 3 | 2 . 1 . Wheel . | . . . . Hover . | . . . . Flight . | . . . . Utility 5 | 2 2 . 1 Device 1 | 1 . . . Storage 4 | 1 2 . 1 Processor . | . . . . Hackware . | . . . . Protection . | . . . . Artifact . | . . . . Weapon 7 | 2 1 2 2 Energy Gun . | . . . . Energy Cannon . | . . . . Ballistic Gun 2 | 2 . . . Ballistic Cannon 1 | . . . 1 Launcher 4 | . 1 2 1 Special Weapon . | . . . . Impact Weapon . | . . . . Slashing Weapon . | . . . . Piercing Weapon . | . . . . Special Melee Weapon . | . . . . Unidentified Prototypes . | . . . . Parts Lost 5 | . . . 5 Power 1 | . . . 1 Propulsion 2 | . . . 2 Utility . | . . . . Weapon 2 | . . . 2 Highest Loss Streak 5 | . . . 5 To Critical Strikes . | . . . . Average Backups 10 | 1 9 15 12 Power . | . 1 1 1 Propulsion . | . . . . Utility 7 | . 6 10 8 Weapon 2 | . 2 4 3 Tool/Special . | . . . . Unused Backups 13 | . 1 . 12 Power 1 | . . . 1 Propulsion . | . . . . Utility 11 | . 1 . 10 Weapon 1 | . . . 1 Tool/Special . | . . . . Average Slot Usage (%) 92 | . 99 97 60 Engine 13 | . 13 14 9 Leg 28 | . 28 31 23 Device 10 | . 14 7 . Storage 13 | . 14 14 9 Ballistic Gun 21 | . 28 9 13 Launcher 5 | . . 18 4 Peak Build Rating 8 | 7 8 8 8 Average Rating 7 | 4 7 7 6 On Entrance 5 | . 7 8 8 Avg Prop Armor Cover (%) . | . . . . Naked Turns 24 | . . . 24 Heaviest Build 30 | 12 27 30 27 Greatest Support 30 | 20 20 30 30 Greatest Overweight (x) 1 | . 1 1 1 Average Overweight (x) . | . . . . Largest Inventory Capacity 15 | 8 15 15 15 Average Capacity 12 | 7 11 15 13 Most Carried 15 | 4 15 15 15 Average Carried 10 | 1 9 15 12 Final Capacity 15 | 8 15 15 5 Final Carried 15 | 4 15 15 4 Class Distribution -------------------- 100% | Mutant Dominant Class ---------------- Mutant | -10/Materials Mutant | -10/Mines Mutant | -9/Materials Resources | -11 -10 -10 -9 ----------- Run | Yrd Mat Min Mat Matter Collected 502 | 206 95 151 50 Remotely . | . . . . Salvage Created 808 | 97 358 104 249 Parts 68 | 10 23 8 27 Haulers Intercepted 1 | . . . 1 Recyclers Shooed 1 | 1 . . . Parts Field Recycled . | . . . . Retrieved Matter . | . . . . Parts Self-Destructed . | . . . . Prevented . | . . . . Parts Restored . | . . . . Kills | -11 -10 -10 -9 ------- Run | Yrd Mat Min Mat Combat Hostiles Destroyed 28 | . 10 9 9 Guns 7 | . 7 . . AOE 21 | . 3 9 9 Classes Destroyed 9 | 2 4 2 1 Worker 3 | . . 2 1 Builder 1 | . 1 . . Tunneler 2 | 2 . . . Hauler 1 | . . . 1 Recycler 2 | 1 . . 1 Watcher 1 | . 1 . . Swarmer 13 | . 3 4 6 Grunt 12 | . 7 2 3 Assembled 3 | . . 3 . Best Kill Streak 5 | 3 5 4 5 Combat Bots Only 5 | . 3 2 5 Max Kills in Single Turn 4 | 2 4 3 4 Gunslinging . | . . . . Exploded 4 | . 2 2 4 Melee . | . . . . Uniques/NPCs Destroyed . | . . . . Combat | -11 -10 -10 -9 -------- Run | Yrd Mat Min Mat Hostile Shots Fired 144 | . 34 11 99 Missed 47 | . 10 6 31 Hits 97 | . 24 5 68 Melee 3 | . . . 3 Projectile 94 | . 24 5 65 Critical Strikes 2 | . . . 2 Damage Taken 1226 | . 266 143 817 Core 462 | . 54 5 403 Absorbed by Shields . | . . . . Core Remaining (%) 68 | 100 . 37 . Volleys Fired 55 | 3 31 8 13 Largest 2 | 2 2 2 2 Hottest 60 | 40 40 60 53 Shots Fired 103 | 6 59 16 22 Gun 71 | 6 56 . 9 Cannon 6 | . . . 6 Launcher 26 | . 3 16 7 Special . | . . . . Kinetic 77 | 6 56 . 15 Thermal . | . . . . Explosive 26 | . 3 16 7 Electromagnetic . | . . . . Robot Hit Streak 7 | 2 7 1 5 Robot Miss Streak 4 | 1 2 2 4 Penetration Max . | . . . . Secondary Targets . | . . . . Shots Hit Robots 48 | 4 32 1 11 Core Hits 66 | 4 22 17 23 Critical Kills . | . . . . Critical Parts Destroyed . | . . . . Critical Strikes . | . . . . Melee Attacks . | . . . . Impact . | . . . . Slashing . | . . . . Piercing . | . . . . Sneak Attacks . | . . . . Combat Hostiles . | . . . . Follow-up Attacks . | . . . . Damage Inflicted 2335 | 58 629 638 1010 Guns 465 | 58 366 . 41 Cannons 103 | . . . 103 Explosions 1762 | . 258 638 866 Melee . | . . . . Ramming 5 | . 5 . . Kinetic 568 | 58 366 . 144 Thermal . | . . . . Explosive 1681 | . 258 638 785 Electromagnetic 81 | . . . 81 Impact . | . . . . Slashing . | . . . . Piercing . | . . . . Highest Corruption . | . . . . Average Corruption . | . . . . Corruption Purged . | . . . . Corruption Blocked . | . . . . Overload Shots . | . . . . Overflow Damage 97 | . 44 25 28 Projectiles . | . . . . Explosions 97 | . 44 25 28 Melee . | . . . . Knockbacks 3 | . . . 3 Impact . | . . . . Kinetic 3 | . . . 3 Secondary . | . . . . Self-Inflicted Damage 84 | . . 84 . Shots 4 | . . 4 . Rammed . | . . . . Targets Rammed 4 | . 4 . . Kicked 4 | . 4 . . Crushed . | . . . . Highest Temperature 18 | . 12 9 18 Average Temperature 7 | . 7 9 7 Received Heat Transfer 312 | . 138 18 156 Siege Activations . | . . . . Martial Activations . | . . . . Shielding Activations . | . . . . Robots Disrupted . | . . . . Combat Hostiles . | . . . . Robots Corrupted . | . . . . Combat Hostiles . | . . . . Parts Fried . | . . . . Impact Corruptions . | . . . . Robots Melted . | . . . . Combat Hostiles . | . . . . Parts Melted . | . . . . Heat Transferred . | . . . . Parts Sabotaged . | . . . . Parts Stolen . | . . . . Parts Stripped . | . . . . Power Chain Reactions . | . . . . Alert | -11 -10 -10 -9 ------- Run | Yrd Mat Min Mat Maximum Alert Level 1 | . . . 1 Low Security (%) 99 | 100 100 100 98 Level 1 . | . . . 1 Level 2 . | . . . . Level 3 . | . . . . Level 4 . | . . . . Level 5 . | . . . . High Security . | . . . . Max Security . | . . . . Peak Influence 218 | 15 105 186 218 Initial 72 | . 3 28 72 Average 40 | 2 33 39 82 Influence Increases 834 | 15 269 254 296 Destroy 0b10 Robot/C 500 | . 200 120 180 Destroy 0b10 Robot/NC 50 | 15 10 10 15 Destroy Leader 84 | . 42 30 12 Successful Hack 2 | . . . 2 Disable Machine 30 | . . . 30 Destroy Structure 123 | . 17 79 27 Lose Combat Pursuer 45 | . . 15 30 Influence Decreases 616 | 10 201 141 264 Entered New Map 161 | . 2 45 114 Time Decay 405 | 10 199 96 100 Lost Part 50 | . . . 50 Squads Dispatched 4 | . 3 . 1 Investigation 1 | . 1 . . Extermination . | . . . . Reinforcement 3 | . 2 . 1 Assault . | . . . . Garrison . | . . . . Intercept . | . . . . Searches Triggered . | . . . . Construction Impeded . | . . . . Haulers Reinforced . | . . . . Active Scanning Responses . | . . . . Cargo Convoy Interrupts . | . . . . Stealth | -11 -10 -10 -9 --------- Run | Yrd Mat Min Mat Distress Signals 5 | . 3 . 2 Communications Jammed . | . . . . Distress Signals . | . . . . Times Spotted 49 | . 15 11 23 Peak Tracking Total 10 | . 4 3 10 Tactical Retreats 3 | . . 1 2 Traps | -11 -10 -10 -9 ------- Run | Yrd Mat Min Mat Traps Triggered 1 | . 1 . . Indirectly . | . . . . Trap Hack Attempts . | . . . . Triggered . | . . . . Disarmed . | . . . . Reprogrammed . | . . . . Reused . | . . . . Traps Extracted . | . . . . Installed . | . . . . Triggered . | . . . . Machines | -11 -10 -10 -9 ---------- Run | Yrd Mat Min Mat Machines Disabled 2 | . . . 2 Max in Single Turn 1 | . . . 1 Machines Repaired . | . . . . Machines Dismantled . | . . . . Machines Sabotaged . | . . . . Overloaded Fab Kills . | . . . . Hacking | -11 -10 -10 -9 --------- Run | Yrd Mat Min Mat Machines Accessed 5 | . 3 . 2 Terminals 3 | . 3 . . Fabricators . | . . . . Repair Stations . | . . . . Recycling Units . | . . . . Scanalyzers 2 | . . . 2 Garrison Access . | . . . . Total Hacks 8 | . 5 . 3 Successful 4 | . 1 . 3 Failed 4 | . 4 . . Catastrophic . | . . . . Database Lockouts . | . . . . Manual 1 | . 1 . . Terminals 5 | . 5 . . Fabricators . | . . . . Repair Stations . | . . . . Recycling Units . | . . . . Scanalyzers 3 | . . . 3 Garrison Access . | . . . . Terminal Hacks 1 | . 1 . . Maintenance Status 1 | . 1 . . Fabricator Hacks . | . . . . Repair Station Hacks . | . . . . Recycling Unit Hacks . | . . . . Scanalyzer 3 | . . . 3 Insert Component 1 | . . . 1 Analyze 1 | . . . 1 Retrieve Study 1 | . . . 1 Garrison Access Hacks . | . . . . Unauthorized Hacks . | . . . . Terminals . | . . . . Fabricators . | . . . . Repair Stations . | . . . . Recycling Units . | . . . . Scanalyzers . | . . . . Garrison Access . | . . . . Data Cores Recovered . | . . . . Used . | . . . . Hacking Detections 3 | . 2 . 1 Full Trace Events . | . . . . Feedback Events . | . . . . Feedback Blocked . | . . . . Robot Schematics Acquired . | . . . . Robots Built . | . . . . Authchips . | . . . . Time . | . . . . Total Robot Build Rating . | . . . . Part Schematics Acquired 1 | . . . 1 Parts Built . | . . . . Authchips . | . . . . Time . | . . . . Total Part Build Rating . | . . . . Part Studies Acquired 1 | . . . 1 Parts Repaired . | . . . . Time . | . . . . Parts Recycled . | . . . . Recycled Matter . | . . . . Retrieved Matter . | . . . . Retrieved Components . | . . . . Parts Scanalyzed 1 | . . . 1 Part Schematics Acquired 1 | . . . 1 Parts Damaged . | . . . . Bothacking | -11 -10 -10 -9 ------------ Run | Yrd Mat Min Mat Used RIF Installer . | . . . . Robots Hacked . | . . . . Non-combat . | . . . . Combat . | . . . . Robot Hacks Applied . | . . . . Relay Couplers Released . | . . . . Fabnet Peak Effective % . | . . . . Robots Rewired . | . . . . Allies Hacked . | . . . . Hacks Repelled . | . . . . Allies | -11 -10 -10 -9 -------- Run | Yrd Mat Min Mat Total Allies . | . . . . Largest Group . | . . . . Highest-Rated Group . | . . . . Highest-Rated Ally . | . . . . Total Orders . | . . . . Ally Attacks . | . . . . Total Damage . | . . . . Kills . | . . . . Allies Corrupted . | . . . . Allies Melted . | . . . . X0-1V1 Amusement Gains 107 | . 17 40 50 Good Acts 1 | . . . 1 Bad Acts 5 | . 1 1 3 Intel | -11 -10 -10 -9 ------- Run | Yrd Mat Min Mat Active Infowar (turns) 903 | 6 744 153 . Seismic 903 | 6 744 153 . Robot Analysis Total . | . . . . Derelict Logs Recovered 1 | . . 1 . Drone Launches . | . . . . Drone Recoveries . | . . . . Exploration | -11 -10 -10 -9 ------------- Run | Yrd Mat Min Mat Turns Passed 1335 | 83 744 291 217 Spaces Moved 824 | 61 435 161 167 Core 72 | 19 . . 53 Treads . | . . . . Legs 752 | 42 435 161 114 Wheels . | . . . . Hover . | . . . . Flight . | . . . . Fastest Speed 50 | 50 120 120 50 Average Speed 134 | 98 141 163 98 Slowest Speed 190 | 120 190 190 175 Overloaded Moves . | . . . . Propulsion Burnouts . | . . . . Robots Hopped . | . . . . Potential Cave-ins . | . . . . Cave-ins Triggered . | . . . . Exploration Rate (%) 32 | 4 65 48 14 Regions Visited 3 Branch Regions 1 Pre-discovered Areas . | . . . . Known Exits Taken . | . . . . Unknown Exits Taken 3 | 1 1 1 . Scrap Searched . | . . . . Spaces Dug . | . . . . Terrain Destroyed 159 | . 15 117 27 Melee . | . . . . Projectile 1 | . . . 1 AOE 158 | . 15 117 26 Terrain Rammed . | . . . . Walls Destroyed . | . . . . Machines Disabled . | . . . . Actions | -11 -10 -10 -9 --------- Run | Yrd Mat Min Mat Total 958 | 76 507 171 204 Wait 15 | . 15 . . Move 821 | 60 434 160 167 Hop . | . . . . Pick Up 24 | 6 14 . 4 Fast Attach 7 | 5 . 1 1 Attach 4 | 2 1 . 1 Detach . | . . . . Swap 11 | . 4 2 5 Drop 17 | . 4 . 13 Fire 55 | 3 31 8 13 Melee . | . . . . Ram . | . . . . Kick 4 | . 4 . . Crush . | . . . . Escape Stasis . | . . . . Rewire . | . . . . Trap . | . . . . Miscellaneous . | . . . . Route ------- -11/Scrapyard -10/Materials (discovered 5 exits: *Mat x2 / [*Min x2] / [*Sub]) -10/Mines -9/Materials (discovered 1 exit: Min) History --------- Turn | Location | Event 18 | -11/Scrapyard | Discovered new exit (range 15) 84 | -11/Scrapyard | Entered Materials 303 | -10/Materials | Build established: Mutant 331 | -10/Materials | Discovered new exit (range 6) 565 | -10/Materials | Discovered new exit (range 4) 621 | -10/Materials | Discovered new exit (range 12) 703 | -10/Materials | Discovered new exit (range 13) 757 | -10/Materials | Discovered new exit (range 8) 765 | -10/Materials | Made a sacrifice at D.C.S.S. Altar Unit 766 | -10/Materials | Core integrity fell below 50% 828 | -10/Materials | Entered Mines 831 | -10/Mines | Met a Derelict bent on vengeance 870 | -10/Mines | Learned 4 Materials zone layouts 911 | -10/Mines | Assembled infested the area 916 | -10/Mines | Assisted by a Guerilla fighting off Assembled 981 | -10/Mines | X0-1V1 mutated your Utility slot to Propulsion slot 1110 | -10/Mines | Discovered new exit (range 7) 1119 | -10/Mines | Entered Materials 1119 | -9/Materials | Evolved 2 slots: Propulsion x2 1120 | -9/Materials | Identified exit to Mines 1297 | -9/Materials | X0-1V1 upgraded hostiles (x2) 1307 | -9/Materials | Core integrity fell below 50% 1331 | -9/Materials | Core integrity fell below 20% 1336 | -9/Materials | Destroyed by Y-45 Defender with Beam Rifle Last Messages --------------- S-10 Pest form resolidifies at new position. W-16 Scout form resolidifies at new position. 01319_ U-05 Engineer lays Concrete. 01319_ X0-1V1: "I find this area lacking in decorations." Y-45 Defender shuts down. 01320_ U-05 Engineer builds a Wall. 01324_ U-05 Engineer lays Concrete. 01324_ Dropped Lgt. Assault Rifle. 01325_ K-01 Serf collects debris. 01325_ U-05 Engineer lays Concrete. 01325_ Acquired Mni. Grenade Launcher. 01326_ U-05 Engineer builds a Wall. 01328_ K-01 Serf collects debris. 01331_ U-05 Engineer lays Concrete. 01332_ A-02 Transporter destroyed. 01332_ Terminal disabled. 01332_ K-01 Serf destroyed. 01332_ R-06 Scavenger destroyed. 01333_ U-05 Engineer builds a Wall. 01336_ X0-1V1 cackles wildly! Map ----- +----------------------------------------------------+ | ?????????????????????????????????????????????????? | | ?????????????????????????????????????????????????? | | # # """" # # #?# # """ ??? | | # # # ##########?# # """ ??? | | # # """" # ############+## # """ ??? | | # # """" # ## # # ??? | | ###### # """" # ## """ """ # # """ ??? | | ## # # ## """ """ + + """ ??? | | " ## ######## ## """ """ # # """ ??? | | " ## #??????# ## # # ??? | | " ## ##?????# ############### #########??? | | # ####### ############## #?????????? | | " # #?????????? | | " + T #??????#??? | | " # #??????#??? | | # ####### ######+### #??????#??? | | " ## ######## #?# ##########???#??? | | " ## # # ### """ #?# #???#??? | | " ## # """ # =! ## "T" #?# """ #???#??? | | ## + "T" # ![[ ## #?# """ #???#??? | | ###### # # s!![= # #?# """ #???#??? | | ?????# # # *%!![% ## #?# #???#??? | | ?????# # """ !# *!!!w= ### #####?# #####??? | | ?????### # """ g [ ==!!# #############+## ??? | | ???????# # """ *=% a ??? | | ???????# # a @ >??? | | ???????# # """ * o ??? | | ???????# #?""" ##############????????? " | | ???????# #?""" # #?????????????????????? " | | ???????# #??????# #??????????????????????""" | | ???????# #??????# #??????????????????????### | | ???????# #??????# #?????????????????????? | | ???????# #?###### [[= #?????????????????????? | | ??????## ### #;Y [[= #?????????????????????? | | ??????# Yws![[= #?????????????????????? | | ??????# [ **!!= ! #?????????????????????? | | ??????# [==!!!][ #??????????????????????" | | ???#### #### ###+####??????????????????????" | | ??##! # ## ????????????????????????" | | ??#! # "" ## #??????????????????????? | | ??#! # ""S ## #???????????????????????### | | ??#! # "" ## #?????????????????????????? | | ??#! + [ ## #?????????????????????????? | | ??##! # """ ## #?????????????????????????# | | ???#### # """ ## #?????????????????????????# | | ??????# # """ ## #?????????????????????????# | | ??????# # ## #?????????????????????????# | | ??????# # #######?????????????????????????# | | ??????# ########???????????????????????????????# | | ??????# ########???????????????????????????????# | +----------------------------------------------------+ Best States ------------- Heat Dissipation 28 Energy Generation 10 Energy Capacity 125 Matter Stores 239 Matter Capacity 300 Sight Range 16 Terrain Scan Density 10 Evasion (%) 55 Item Schematics ----------------- Grenade Launcher | -9/Materials | Scanalyzed Robot Schematics ------------------ None Fabricated ------------ Nothing Repaired ---------- Nothing Studied --------- Aluminum Leg | -9/Materials | Hacked Alien Tech Used ----------------- None Achievements -------------- None Challenges ------------ None Game ------ Seed BlanketWeightBoomstick Manual? 0 Play Time 00:11:14 Cumulative 26.2 hours Start 2026.07.13 @ 17:55:31 End 2026.07.13 @ 18:04:38 Sessions 1 Manual Loads 0 Difficulty Rogue Special Mode None Game No. 23 Rogue 23 Adventurer 0 Explorer 0 Win Type - Total 1 Types 1/0/0/0/0/0/0/0/0/0 Lore% 23 Gallery% 35 Achievement% 58 Wizard Run 0 Options --------- Layout 0 ASCII 0 Keyboard 0 Movement Vi Keybinds 0 Fullscreen 2 Font 18/TerminusBold Map View 76x50 Zoom Use 0% Tactical HUD 1 Map Filters NONE Filters NONE Steam 1 RUN: 9ab02faa-c5b7-484e-92e0-0cbfb98bad5b